[Event "Israel Open Championship 2023"]
[Site "Acre"]
[Date "2024.01.28"]
[Round "8.16"]
[White "Sitbon, Itay"]
[Black "Menahem, Adi"]
[Result "1-0"]
[ECO "A35"]
[WhiteElo "2213"]
[BlackElo "2062"]
[Annotator "RC"]
[PlyCount "81"]
[EventDate "2024.01.18"]
[EventType "swiss"]
[EventCountry "ISR"]
[SourceTitle "playchess.com"]
[Source "ChessBase"]
[SourceQuality "1"]
[TimeControl "5400+30"]

1. c4 {[%emt 0:00:02]} c5 {[%emt 0:00:59]} 2. Nf3 {[%emt 0:00:39]} Nc6 {[%emt 0:00:11]} 3. e3 {[%emt 0:03:39]} e5 {[%emt 0:01:32]} 4. Nc3 {[%emt 0:00:56]} f5 {[%emt 0:01:49]} 5. d4 {[%emt 0:02:37]} e4 {[%emt 0:01:07]} 6. d5 {[%emt 0:01:30]} exf3 {[%emt 0:00:13]} 7. dxc6 {[%emt 0:00:02]} dxc6 {[%emt 0:00:10]} 8. Qxf3 {[%emt 0:01:14]} Nf6 {[%emt 0:03:27]} 9. Be2 {[%emt 0:04:25]} Bd6 {[%emt 0:03:36]} 10. e4 {[%emt 0:06:14]} fxe4 {[%emt 0:02:35]} 11. Nxe4 {[%emt 0:00:06]} Nxe4 {[%emt 0:02:35]} 12. Qxe4+ {[%emt 0:00:02]} Qe7 {[%emt 0:00:16]} 13. Qxe7+ {[%emt 0:02:16]} Bxe7 {[%emt 0:01:13]} 14. Be3 {[%emt 0:00:22]} O-O {[%emt 0:02:32]} 15. h3 {[%emt 0:07:10]} Bf5 {[%emt 0:02:47]} 16. O-O-O {[%emt 0:05:03]} Rad8 {[%emt 0:04:15]} 17. Bg4 {[%emt 0:02:22]} Bxg4 {[%emt 0:04:00]} 18. hxg4 {[%emt 0:00:33]} b6 {[%emt 0:02:02]} 19. Rxd8 {[%emt 0:06:28]} Rxd8 {[%emt 0:00:26]} 20. Rd1 {[%emt 0:00:18]} Kf7 {[%emt 0:02:03]} 21. Rxd8 {[%emt 0:02:00]} Bxd8 {[%emt 0:00:07]} 22. Kc2 {[%emt 0:00:12]} Bc7 {[%emt 0:15:04]} 23. Kd3 {[%emt 0:01:00]} Kf6 {[%emt 0:06:05]} 24. Ke4 {[%emt 0:08:24]} g5 {[%emt 0:09:44]} 25. Bd2 {[%emt 0:01:05]} a6 {[%emt 0:05:24]} 26. Bc3+ {[%emt 0:04:23]} Ke6 {[%emt 0:29:18]} 27. g3 {[%emt 0:02:03]} Bd6 {[%emt 0:00:00]} 28. Bg7 {[%emt 0:04:27]} b5 {[%emt 0:00:00]} 29. b3 {[%emt 0:00:10]} Be7 {[%emt 0:00:00]} 30. f4 {[%emt 0:04:04]} b4 {[%emt 0:00:00]} 31. Bh6 {[%emt 0:02:32]} gxf4 {[%emt 0:00:00]} 32. gxf4 {[%emt 0:00:08]} Bd6 {[%emt 0:00:00]} 33. f5+ {[%emt 0:01:20]} Kf6 {[%emt 0:00:00]} 34. Bf4 {[%emt 0:02:02]} Bf8 {[%emt 0:00:00]} 35. g5+ {[%emt 0:00:10]} Kf7 {[%emt 0:00:00]} 36. Ke5 {[%emt 0:03:28]} Be7 {[%emt 0:00:00]} 37. Bd2 {[%emt 0:01:11]} Bf8 {[%emt 0:00:00]} 38. Be3 {[%emt 0:00:08]} Be7 {[%emt 0:00:00]} 39. g6+ {[%emt 0:01:44]} hxg6 {[%emt 0:00:00]} 40. fxg6+ {[%emt 0:00:06]} Kxg6 {[%emt 0:00:00]} 41. Ke6 {[%emt 0:00:07]} 1-0

[Event "Israel Open Championship 2023"]
[Site "Acre"]
[Date "2024.01.28"]
[Round "8.17"]
[White "Kinberg, Ofer"]
[Black "Gavriely, Or"]
[Result "0-1"]
[ECO "A11"]
[WhiteElo "1927"]
[BlackElo "2106"]
[Annotator "RC"]
[PlyCount "50"]
[EventDate "2024.01.18"]
[EventType "swiss"]
[EventCountry "ISR"]
[SourceTitle "playchess.com"]
[Source "ChessBase"]
[SourceQuality "1"]
[TimeControl "5400+30"]

1. c4 {[%emt 0:00:03]} c6 {[%emt 0:00:59]} 2. Nf3 {[%emt 0:00:08]} Nf6 {[%emt 0:00:13]} 3. g3 {[%emt 0:00:12]} g6 {[%emt 0:01:17]} 4. Bg2 {[%emt 0:00:31]} Bg7 {[%emt 0:00:08]} 5. O-O {[%emt 0:00:16]} O-O {[%emt 0:00:15]} 6. b3 {[%emt 0:01:56]} d5 {[%emt 0:00:21]} 7. Bb2 {[%emt 0:00:16]} Bg4 {[%emt 0:00:55]} 8. h3 {[%emt 0:04:13]} Bxf3 {[%emt 0:02:40]} 9. Bxf3 {[%emt 0:00:04]} Nbd7 {[%emt 0:01:32]} 10. cxd5 {[%emt 0:02:00]} cxd5 {[%emt 0:03:31]} 11. d4 {[%emt 0:00:37]} Rc8 {[%emt 0:07:15]} 12. Na3 {[%emt 0:00:41]} Ne4 {[%emt 0:07:56]} 13. Rc1 {[%emt 0:11:02]} Ndf6 {[%emt 0:05:47]} 14. Qd3 {[%emt 0:06:44]} Qa5 {[%emt 0:04:08]} 15. Bg2 {[%emt 0:06:18]} a6 {[%emt 0:02:42]} 16. Rc2 {[%emt 0:29:17]} b5 {[%emt 0:11:05]} 17. Ra1 {[%emt 0:25:34]} e6 {[%emt 0:17:23]} 18. Rxc8 {[%emt 0:00:43]} Rxc8 {[%emt 0:00:02]} 19. Nc2 {[%emt 0:00:45]} Bf8 {[%emt 0:02:48]} 20. a3 {[%emt 0:00:46]} Qd2 {[%emt 0:01:26]} 21. Qxd2 {[%emt 0:06:33]} Nxd2 {[%emt 0:00:02]} 22. Nb4 {[%emt 0:02:04]} Nxb3 {[%emt 0:00:22]} 23. Rd1 {[%emt 0:00:04]} Bxb4 {[%emt 0:01:19]} 24. axb4 {[%emt 0:00:06]} Rc2 {[%emt 0:00:05]} 25. Ba3 {[%emt 0:01:20]} Ra2 {[%emt 0:00:13]} 0-1

[Event "Israel Open Championship 2023"]
[Site "Acre"]
[Date "2024.01.28"]
[Round "8.18"]
[White "Slobodiansky, Steven"]
[Black "Zakin, Ilay"]
[Result "1-0"]
[ECO "E67"]
[WhiteElo "2273"]
[BlackElo "2009"]
[Annotator "RC"]
[PlyCount "139"]
[EventDate "2024.01.18"]
[EventType "swiss"]
[EventCountry "ISR"]
[SourceTitle "playchess.com"]
[Source "ChessBase"]
[SourceQuality "1"]
[TimeControl "5400+30"]

1. b3 {[%emt 0:00:06]} g6 {[%emt 0:00:09]} 2. Bb2 {[%emt 0:00:04]} Nf6 {[%emt 0:00:06]} 3. Nf3 {[%emt 0:00:07]} Bg7 {[%emt 0:00:09]} 4. g3 {[%emt 0:00:06]} O-O {[%emt 0:00:11]} 5. Bg2 {[%emt 0:00:07]} d6 {[%emt 0:00:09]} 6. d4 {[%emt 0:00:07]} Nbd7 {[%emt 0:00:11]} 7. O-O {[%emt 0:00:22]} Re8 {[%emt 0:00:10]} 8. c4 {[%emt 0:01:32]} c6 {[%emt 0:00:06]} 9. Nc3 {[%emt 0:01:18]} e5 {[%emt 0:00:05]} 10. e3 {[%emt 0:02:41]} e4 {[%emt 0:10:23]} 11. Nd2 {[%emt 0:00:26]} d5 {[%emt 0:01:02]} 12. cxd5 {[%emt 0:03:52]} cxd5 {[%emt 0:01:19]} 13. f3 {[%emt 0:00:32]} exf3 {[%emt 0:02:49]} 14. Qxf3 {[%emt 0:01:47]} Nb6 {[%emt 0:02:04]} 15. e4 {[%emt 0:04:00]} dxe4 {[%emt 0:10:51]} 16. Ncxe4 {[%emt 0:00:23]} Bf5 {[%emt 0:01:34]} 17. Nxf6+ {[%emt 0:12:12]} Bxf6 {[%emt 0:00:12]} 18. Qf2 {[%emt 0:00:33]} Rc8 {[%emt 0:24:15]} 19. Rac1 {[%emt 0:02:56]} Rxc1 {[%emt 0:00:40]} 20. Rxc1 {[%emt 0:00:04]} Qe7 {[%emt 0:00:20]} 21. Nf3 {[%emt 0:02:50]} Qe2 {[%emt 0:06:22]} 22. Ne5 {[%emt 0:00:34]} Qxf2+ {[%emt 0:03:34]} 23. Kxf2 {[%emt 0:00:10]} Rd8 {[%emt 0:10:11]} 24. Ke2 {[%emt 0:11:04]} Nd7 {[%emt 0:02:04]} 25. g4 {[%emt 0:06:33]} Be6 {[%emt 0:05:26]} 26. h3 {[%emt 0:00:10]} Nxe5 {[%emt 0:00:59]} 27. dxe5 {[%emt 0:00:08]} Bg5 {[%emt 0:00:04]} 28. Rc2 {[%emt 0:00:58]} b6 {[%emt 0:00:44]} 29. Ba3 {[%emt 0:01:22]} Bf4 {[%emt 0:02:10]} 30. Bd6 {[%emt 0:00:53]} Re8 {[%emt 0:02:26]} 31. Kf3 {[%emt 0:07:19]} g5 {[%emt 0:00:38]} 32. Rc7 {[%emt 0:05:09]} Bd5+ {[%emt 0:02:39]} 33. Kf2 {[%emt 0:00:04]} Bxg2 {[%emt 0:00:17]} 34. Kxg2 {[%emt 0:00:02]} a5 {[%emt 0:01:54]} 35. Re7 {[%emt 0:01:14]} Rc8 {[%emt 0:08:19]} 36. Kf3 {[%emt 0:00:13]} b5 {[%emt 0:01:47]} 37. Ke4 {[%emt 0:00:08]} Kg7 {[%emt 0:01:54]} 38. Kf5 {[%emt 0:00:16]} h6 {[%emt 0:01:17]} 39. Ra7 {[%emt 0:00:29]} a4 {[%emt 0:00:00]} 40. bxa4 {[%emt 0:00:42]} bxa4 {[%emt 0:00:00]} 41. Be7 {[%emt 0:00:20]} Be3 {[%emt 0:00:54]} 42. Bf6+ {[%emt 0:00:26]} Kg8 {[%emt 0:00:00]} 43. Rxa4 {[%emt 0:00:00]} Rb8 {[%emt 0:00:00]} 44. Ra6 {[%emt 0:00:00]} Kh7 {[%emt 0:00:00]} 45. a4 {[%emt 0:00:00]} Rb4 {[%emt 0:00:00]} 46. e6 {[%emt 0:00:00]} Rf4+ {[%emt 0:00:00]} 47. Ke5 {[%emt 0:00:00]} Bd4+ {[%emt 0:00:00]} 48. Kd5 {[%emt 0:00:00]} fxe6+ {[%emt 0:00:00]} 49. Rxe6 {[%emt 0:00:00]} Bxf6 {[%emt 0:00:00]} 50. a5 {[%emt 0:00:00]} Kg7 {[%emt 0:00:00]} 51. a6 {[%emt 0:00:00]} Ra4 {[%emt 0:00:00]} 52. Kc5 {[%emt 0:00:00]} Bd4+ {[%emt 0:00:00]} 53. Kb5 {[%emt 0:00:00]} Ra2 {[%emt 0:00:00]} 54. Rd6 {[%emt 0:00:00]} Bf2 {[%emt 0:00:00]} 55. Rc6 {[%emt 0:00:00]} Ra3 {[%emt 0:00:00]} 56. Rc7+ {[%emt 0:44:11]} Kf6 {[%emt 0:00:00]} 57. Rc6+ {[%emt 0:00:00]} Ke5 {[%emt 0:00:00]} 58. Rxh6 {[%emt 0:00:00]} Kd5 {[%emt 0:00:00]} 59. Rf6 {[%emt 0:00:00]} Rb3+ {[%emt 0:05:49]} 60. Ka4 {[%emt 0:00:00]} Rb2 {[%emt 0:00:18]} 61. Ka3 {[%emt 0:00:00]} Re2 {[%emt 0:01:53]} 62. Kb3 {[%emt 0:00:00]} Bc5 {[%emt 0:02:02]} 63. Rg6 {[%emt 0:00:00]} Re3+ {[%emt 0:00:31]} 64. Kc2 {[%emt 0:00:00]} Re5 {[%emt 0:00:40]} 65. Rg7 {[%emt 0:00:00]} Kc4 {[%emt 0:00:48]} 66. a7 {[%emt 0:00:00]} Re2+ {[%emt 0:00:22]} 67. Kd1 {[%emt 0:00:00]} Ra2 {[%emt 0:00:30]} 68. Rxg5 {[%emt 0:00:00]} Rxa7 {[%emt 0:00:15]} 69. Ke2 {[%emt 0:00:00]} Bd4 {[%emt 0:00:52]} 70. h4 {[%emt 0:07:00]} 1-0

[Event "Israel Open Championship 2023"]
[Site "Acre"]
[Date "2024.01.28"]
[Round "8.19"]
[White "Taieb, Ariel"]
[Black "Vagman, Roy"]
[Result "0-1"]
[ECO "B11"]
[WhiteElo "1986"]
[BlackElo "2302"]
[Annotator "TA"]
[PlyCount "62"]
[EventDate "2024.01.18"]
[EventType "swiss"]
[EventCountry "ISR"]
[SourceTitle "playchess.com"]
[Source "ChessBase"]
[SourceQuality "1"]
[TimeControl "5400+30"]

{[%evp 9,62,0,15,4,19,2,22,18,20,20,9,16,8,-46,4,0,8,0,-7,-12,-20,0,0,0,20,-44,-50,-178,-181,-229,-114,-448,-253,-252,-82,-88,-78,-77,-79,-152,-129,-163,-112,-117,-129,-118,-66,-458,-175,-517,-500,-5090,-2685,-29990,-29991]} 1. e4 {[%emt 0:00:08]} c6 {[%emt 0:00:07]} 2. Nc3 {[%emt 0:00:08]} d5 {[%emt 0:00:08]} 3. Nf3 {[%emt 0:00:20]} Bg4 {[%emt 0:00:13]} 4. Be2 {[%emt 0:01:02]} e6 {[%emt 0:00:18]} 5. d4 {[%emt 0:00:16]} Be7 {[%emt 0:00:15]} 6. Ne5 {[%emt 0:09:09]} Bxe2 {[%emt 0:00:16]} 7. Qxe2 {[%emt 0:00:05]} dxe4 {[%emt 0:04:16]} 8. Qg4 {[%emt 0:08:16] The position is equal.} g6 {[%emt 0:03:12]} 9. Qxe4 {[%emt 0:01:40]} Nf6 {[%emt 0:00:38]} 10. Qd3 {[%emt 0:03:51]} Nbd7 {[%emt 0:00:44]} 11. Bg5 {[%emt 0:19:56]} ({White should play} 11. Nf3 $11) 11... Nd5 {[%emt 0:18:25]} ({Black should try} 11... Nxe5 $15 12. dxe5 Qxd3 13. cxd3 Ng4 14. Bxe7 Kxe7) 12. Bxe7 $11 {[%emt 0:11:33]} Qxe7 {[%emt 0:00:33]} 13. Ne4 {[%emt 0:01:37]} f5 {[%emt 0:04:54] Hoping for ...Nxe5.} 14. Nd2 $1 {[%emt 0:05:36]} (14. Nxd7 $2 fxe4 15. Qxe4 Qxd7 $19 (15... Kxd7 $2 16. O-O $19)) 14... Nxe5 {[%emt 0:00:11]} 15. dxe5 {[%emt 0:00:12]} Rd8 {[%emt 0:01:42]} 16. O-O-O {[%emt 0:10:17]} O-O {[%emt 0:01:41]} 17. h4 {[%emt 0:03:38]} (17. Qg3 $11) 17... Qc5 $15 {[%emt 0:01:00]} 18. Kb1 {[%emt 0:14:28]} (18. h5 $15) 18... Qxf2 $19 {[%emt 0:00:33]} 19. Nc4 {[%emt 0:07:48] [#] Against Ne3} (19. Qf3 {keeps fighting.} Qxf3 20. Nxf3) 19... b5 {[%emt 0:02:25]} (19... Qxg2 20. Nd6 Qf2 21. h5) (19... Nb4 $1 $19 {and Black stays clearly on top.} 20. Qb3 Rxd1+ 21. Rxd1 Nd5) 20. Na5 $2 {[%emt 0:00:00][%mdl 8192]} (20. Nd6 $17) 20... Qb6 {[%emt 0:01:34]} (20... Qxg2 21. Rhg1 Qe4 22. Qxe4 fxe4 23. Nxc6 $19) (20... Ne3 $142 21. Qxd8 Qxc2+ (21... Nxg2 $2 22. Qe7 $18) 22. Ka1 Rxd8 23. Rxd8+ Kg7) 21. Qa3 {[%emt 0:00:00]} h5 $2 {[%emt 0:03:08]} (21... c5 $19 {is more deadly. ...f4 is the strong threat.} 22. h5 gxh5 23. Qg3+ Kh8) 22. c4 $17 {[%emt 0:00:00] [#]} bxc4 {[%emt 0:02:28]} (22... Ne3 23. c5 Rxd1+ 24. Rxd1 $18) 23. Nxc4 {[%emt 0:00:00]} Qf2 $36 {[%emt 0:00:02][%mdl 2048] Black is on the roll.} 24. Nd6 {[%emt 0:01:16]} (24. Ka1 $142) 24... Rb8 {[%emt 0:00:40][%cal Od5e3]} (24... Qxg2 25. Rdg1 Qf2 26. Rxg6+ Kh7 27. Rg5 $11 (27. Rxe6 Rg8 $17)) 25. Rc1 {[%emt 0:00:58]} Rb6 {[%emt 0:00:55]} (25... Qxg2 26. Rhg1 (26. Qxa7 $2 Qxb2#) 26... Qe2 27. Rxg6+ (27. Qxa7 $2 Qxb2#) 27... Kh7 28. Qxa7+ (28. Rxe6 a5 $14) 28... Kxg6 29. Rg1+ $11) ({Better is} 25... c5 $19 26. Rc2 Qf4) 26. Nc4 {[%emt 0:01:16]} Rb4 {[%emt 0:00:08][%cal Of2d4]} 27. Rc2 {[%emt 0:00:00]} Qd4 {[%emt 0:01:00] Black has more active pieces.} 28. Na5 {[%emt 0:00:12][%mdl 8192]} (28. Rhc1 $15) 28... Qe4 $2 {[%emt 0:00:27]} (28... Qxe5 $2 29. Nxc6 (29. Rxc6 $2 {is the wrong capture.} Qe4+ 30. Ka1 Ra4 $19) 29... Qe4 30. Qg3 $19 (30. Nxb4 $2 Nxb4 31. Qc3 Qxc2+ 32. Qxc2 Nxc2 $19)) (28... Ne3 29. Re2 f4 (29... Qe4+ $2 30. Ka1 $19)) 29. Rhc1 {[%emt 0:00:37]} (29. Qf3 {is tougher.}) 29... Ne3 $19 {[%emt 0:00:23]} ({Not} 29... Qxh4 30. Nxc6 Qe4 31. Ka1 $17 (31. Nxb4 $2 Nxb4 32. Qxa7 Nxc2 $19)) 30. Nxc6 {[%emt 0:00:36]} (30. Qc3 $142) 30... Nxc2 {[%emt 0:00:12]} 31. Rxc2 {[%emt 0:00:09]} Rc4 {[%emt 0:00:13] Weighted Error Value: White=0.98/Black=0.46.  Loses game:     	White=2     	---        Missed win:     	---       	Black=1      Mistake:       	White=7     	Black=5      Inaccurate:     	White=1     	---        OK:         	White=5     	Black=10     Best:        	White=3     	Black=2      Strong:       	White=1     	---} 0-1

[Event "Israel Open Championship 2023"]
[Site "Acre"]
[Date "2024.01.28"]
[Round "8.20"]
[White "Bykhovsky, Avigdor"]
[Black "Mondri, Nadav"]
[Result "1-0"]
[ECO "D37"]
[WhiteElo "2349"]
[BlackElo "1823"]
[Annotator "RC"]
[PlyCount "53"]
[EventDate "2024.01.18"]
[EventType "swiss"]
[EventCountry "ISR"]
[SourceTitle "playchess.com"]
[Source "ChessBase"]
[SourceQuality "1"]
[TimeControl "5400+30"]

1. d4 {[%emt 0:00:06]} Nf6 {[%emt 0:00:15]} 2. c4 {[%emt 0:00:14]} e6 {[%emt 0:00:08]} 3. Nf3 {[%emt 0:00:19]} Bb4+ {[%emt 0:01:40]} 4. Bd2 {[%emt 0:01:03]} Be7 {[%emt 0:01:03]} 5. Nc3 {[%emt 0:03:04]} d5 {[%emt 0:02:14]} 6. Bf4 {[%emt 0:03:00]} O-O {[%emt 0:04:59]} 7. e3 {[%emt 0:00:10]} c5 {[%emt 0:03:05]} 8. dxc5 {[%emt 0:02:03]} Bxc5 {[%emt 0:01:16]} 9. a3 {[%emt 0:02:05]} b6 {[%emt 0:02:34]} 10. cxd5 {[%emt 0:05:52]} Nxd5 {[%emt 0:01:36]} 11. Nxd5 {[%emt 0:00:31]} Qxd5 {[%emt 0:02:00]} 12. Qxd5 {[%emt 0:06:27]} exd5 {[%emt 0:00:10]} 13. Rd1 {[%emt 0:00:20]} Bb7 {[%emt 0:01:20]} 14. Be2 {[%emt 0:05:27]} Nd7 {[%emt 0:03:24]} 15. O-O {[%emt 0:02:27]} Nf6 {[%emt 0:02:59]} 16. Rc1 {[%emt 0:01:23]} Rac8 {[%emt 0:01:49]} 17. Nd4 {[%emt 0:20:04]} a5 {[%emt 0:13:19]} 18. Nb3 {[%emt 0:06:08]} Be7 {[%emt 0:01:25]} 19. Bb5 {[%emt 0:01:13]} Bc5 {[%emt 0:19:05]} 20. Rfd1 {[%emt 0:14:35]} h6 {[%emt 0:02:44]} 21. a4 {[%emt 0:03:29]} Bc6 {[%emt 0:03:27]} 22. Nxc5 {[%emt 0:01:26]} Bxb5 {[%emt 0:02:07]} 23. axb5 {[%emt 0:00:09]} Rxc5 {[%emt 0:00:37]} 24. Rxc5 {[%emt 0:00:02]} bxc5 {[%emt 0:00:07]} 25. b6 {[%emt 0:00:13]} g5 {[%emt 0:07:28]} 26. Bc7 {[%emt 0:00:23]} Ne8 {[%emt 0:01:21]} 27. Rxd5 {[%emt 0:01:46]} 1-0

[Event "Israel Open Championship 2023"]
[Site "Acre"]
[Date "2024.01.28"]
[Round "8.21"]
[White "Ribstein, Orel"]
[Black "Iliaguev, Kafar"]
[Result "1-0"]
[ECO "E16"]
[WhiteElo "2043"]
[BlackElo "2291"]
[Annotator "RC"]
[PlyCount "94"]
[EventDate "2024.01.18"]
[EventType "swiss"]
[EventCountry "ISR"]
[SourceTitle "playchess.com"]
[Source "ChessBase"]
[SourceQuality "1"]
[TimeControl "5400+30"]

1. d4 {[%emt 0:00:01]} e6 {[%emt 0:06:13]} 2. c4 {[%emt 0:01:14]} Bb4+ {[%emt 0:00:05]} 3. Nd2 {[%emt 0:00:26]} Nf6 {[%emt 0:00:10]} 4. Ngf3 {[%emt 0:01:07]} O-O {[%emt 0:00:06]} 5. g3 {[%emt 0:00:10]} b6 {[%emt 0:01:10]} 6. Bg2 {[%emt 0:00:15]} Bb7 {[%emt 0:00:04]} 7. O-O {[%emt 0:00:10]} d5 {[%emt 0:02:47]} 8. cxd5 {[%emt 0:01:18]} exd5 {[%emt 0:00:20]} 9. Qb3 {[%emt 0:00:09]} Bd6 {[%emt 1:24:05]} 10. Nb1 {[%emt 0:02:28]} Ne4 {[%emt 0:00:00]} 11. Nfd2 {[%emt 0:04:27]} Nf6 {[%emt 0:00:00]} 12. Nc3 {[%emt 0:00:15]} Nc6 {[%emt 0:00:00]} 13. Nf3 {[%emt 0:02:12]} Na5 {[%emt 0:00:00]} 14. Qc2 {[%emt 0:01:22]} a6 {[%emt 0:00:00]} 15. Rd1 {[%emt 0:03:36]} Re8 {[%emt 0:00:00]} 16. Nh4 {[%emt 0:00:54]} g6 {[%emt 0:00:00]} 17. Bg5 {[%emt 0:12:48]} Be7 {[%emt 0:00:00]} 18. Rac1 {[%emt 0:02:10]} h6 {[%emt 0:00:00]} 19. Bxf6 {[%emt 0:18:15]} Bxf6 {[%emt 0:00:00]} 20. Nxg6 {[%emt 0:00:04]} fxg6 {[%emt 0:00:00]} 21. Qxg6+ {[%emt 0:00:02]} Bg7 {[%emt 0:00:00]} 22. Nxd5 {[%emt 0:05:41]} Rc8 {[%emt 0:00:00]} 23. Nxc7 {[%emt 0:05:50]} Rxe2 {[%emt 0:00:00]} 24. Bxb7 {[%emt 0:08:03]} Rxc7 {[%emt 0:00:00]} 25. Qxb6 {[%emt 0:00:47]} Qf8 {[%emt 0:00:00]} 26. Bd5+ {[%emt 0:02:00]} Kh8 {[%emt 0:00:00]} 27. f3 {[%emt 0:00:36]} Rxc1 {[%emt 0:00:00]} 28. Rxc1 {[%emt 0:00:01]} Qe8 {[%emt 0:00:00]} 29. Be4 {[%emt 0:00:28]} Rxe4 {[%emt 0:00:00]} 30. fxe4 {[%emt 0:00:01]} Qxe4 {[%emt 0:00:00]} 31. Rc8+ {[%emt 0:01:37]} Kh7 {[%emt 0:00:00]} 32. Qxa5 {[%emt 0:00:10]} Bxd4+ {[%emt 0:00:00]} 33. Kf1 {[%emt 0:01:02]} Qh1+ {[%emt 0:04:04]} 34. Ke2 {[%emt 0:00:05]} Qxh2+ {[%emt 0:00:09]} 35. Kd3 {[%emt 0:06:43]} Qxg3+ {[%emt 0:00:06]} 36. Kc4 {[%emt 0:00:17]} Qg4 {[%emt 0:00:54]} 37. Rc7+ {[%emt 0:07:08]} Kh8 {[%emt 0:03:01]} 38. Kb3 {[%emt 0:06:13]} Qe6+ {[%emt 0:02:16]} 39. Rc4 {[%emt 0:04:00]} Qe3+ {[%emt 0:02:04]} 40. Ka4 {[%emt 0:00:57]} Qe8+ {[%emt 0:00:31]} 41. Ka3 {[%emt 0:01:11]} Qe7+ {[%emt 0:02:19]} 42. Qb4 {[%emt 0:03:52]} Qe3+ {[%emt 0:00:16]} 43. b3 {[%emt 0:00:00]} Bg7 {[%emt 0:00:00]} 44. Rc8+ {[%emt 0:00:00]} Kh7 {[%emt 0:00:00]} 45. Qc5 {[%emt 0:00:00]} Qxc5+ {[%emt 0:00:00]} 46. Rxc5 {[%emt 0:00:00]} Bf8 {[%emt 0:00:00]} 47. b4 {[%emt 0:00:00]} Bg7 {[%emt 0:03:20]} 1-0

[Event "Israel Open Championship 2023"]
[Site "Acre"]
[Date "2024.01.28"]
[Round "8.22"]
[White "Dezent, Eyal"]
[Black "Gluhovsky, Mark"]
[Result "0-1"]
[ECO "B31"]
[WhiteElo "1947"]
[BlackElo "2235"]
[Annotator "TA"]
[PlyCount "98"]
[EventDate "2024.01.18"]
[EventType "swiss"]
[EventCountry "ISR"]
[SourceTitle "playchess.com"]
[Source "ChessBase"]
[SourceQuality "1"]
[TimeControl "5400+30"]

{[%evp 10,98,27,25,21,19,40,29,43,22,50,41,35,28,51,29,43,32,35,52,44,43,58,45,51,10,68,44,42,-22,39,12,0,16,62,52,95,92,85,84,87,83,92,87,90,64,127,11,21,21,29,40,165,164,154,173,155,16,14,26,66,0,0,-75,-71,-558,-543,-537,-541,-784,-806,-804,-723,-784,-745,-6079,-6079,-984,-929,-1245,-1572,-1464,-1702,-1595,-1464,-29978,-29979,-29974,-29975,-12841,-12834]} 1. e4 {[%emt 0:00:33]} c5 {[%emt 0:00:02]} 2. Nf3 {[%emt 0:00:14]} Nc6 {[%emt 0:01:16]} 3. Bb5 {[%emt 0:00:15]} g6 {[%emt 0:00:06]} 4. Bxc6 {[%emt 0:00:08]} dxc6 {[%emt 0:00:14]} 5. d3 {[%emt 0:00:45]} Bg7 {[%emt 0:00:07]} 6. h3 {[%emt 0:00:04]} Qc7 {[%emt 0:00:30]} 7. O-O {[%emt 0:00:56]} b6 {[%emt 0:00:15]} 8. a4 {[%emt 0:02:43][%cal Oa4a5]} a5 {[%emt 0:01:15] [#] White has an edge.} 9. e5 $1 {[%emt 0:02:51]} Nh6 {[%emt 0:05:12]} 10. Bf4 {[%emt 0:07:33]} Nf5 {[%emt 0:01:52]} 11. c3 {[%emt 0:01:58]} h5 {[%emt 0:08:51]} 12. Qd2 {[%emt 0:12:00][%cal Oe5e6]} Be6 {[%emt 0:05:42]} 13. Ng5 {[%emt 0:02:47]} Qd7 {[%emt 0:00:31]} 14. Nxe6 {[%emt 0:00:31]} Qxe6 {[%emt 0:00:07]} 15. Na3 {[%emt 0:05:05]} O-O {[%emt 0:03:32]} 16. Rfe1 {[%emt 0:12:49]} Rfd8 {[%emt 0:01:18]} 17. Nc4 {[%emt 0:01:15]} Rab8 {[%emt 0:14:01]} (17... b5 $11 18. axb5 cxb5 19. Nxa5 Qd5) 18. Kh2 {[%emt 0:13:43]} Rb7 {[%emt 0:03:13]} 19. Rad1 {[%emt 0:02:40]} (19. Qc2 $14) 19... Rbd7 {[%emt 0:16:53]} (19... b5 $1 $11 20. Na3 (20. Nxa5 Ra7 $15) 20... Qb3 (20... bxa4 21. Nc4 $16)) 20. Qe2 {[%emt 0:04:11]} (20. Nxb6 $2 Rxd3 21. Qxd3 Rxd3 22. Rxd3 Qb3 23. Rd8+ Kh7 $19) 20... b5 {[%emt 0:02:00]} 21. Na3 {[%emt 0:09:16]} (21. Nxa5 Ra8 22. b4 cxb4 (22... bxa4 23. Nc4 $14) 23. cxb4 bxa4) 21... c4 {[%emt 0:03:06]} (21... Qb3 $11) 22. d4 $36 {[%emt 0:02:48][%mdl 2048] White has the initiative.} Rb7 {[%emt 0:08:53]} 23. g4 {[%emt 0:01:40]} hxg4 {[%emt 0:01:29]} 24. hxg4 {[%emt 0:00:05]} Bh6 {[%emt 0:01:51]} 25. Qe4 {[%emt 0:03:39]} Bxf4+ {[%emt 0:04:45]} 26. Qxf4 {[%emt 0:00:02]} Ng7 {[%emt 0:01:04]} 27. Kg3 {[%emt 0:03:33]} b4 {[%emt 0:01:05] [#]} (27... bxa4 $14 28. Qh6 g5 (28... Rxb2 $2 {is the wrong capture.} 29. Rh1 $18) 29. Qxe6 (29. Qxg5 Rxb2 30. Rh1 Qg6 $11) 29... Nxe6) 28. Nc2 {[%emt 0:01:03]} ({White has to play} 28. Nb1 $1 $16) 28... bxc3 $11 {[%emt 0:00:13]} 29. bxc3 {[%emt 0:00:01] Threatening Ne3.} Rb3 {[%emt 0:00:41]} 30. Re3 {[%emt 0:02:20] aiming for Rh1.} Rb2 {[%emt 0:04:29]} ({But not} 30... c5 $6 31. Rh1 g5 32. Qxg5 $16) ({Black should try} 30... f5 $1 $14) 31. Ne1 $18 {[%emt 0:03:18]} f5 {[%emt 0:03:54] Threatens to win with ...fxg4.} 32. exf6 {[%emt 0:00:12]} Qxf6 {[%emt 0:00:11]} 33. Qxf6 {[%emt 0:01:08]} ({White should play} 33. Nf3 $16) 33... exf6 $11 {[%emt 0:00:06]} 34. Nf3 {[%emt 0:01:34]} Kf7 {[%emt 0:00:40]} 35. Rd2 {[%emt 0:01:26]} ({Better is} 35. Nd2 $14) 35... Rdb8 {[%emt 0:01:25]} 36. Kg2 {[%emt 0:02:33]} (36. Rd1 $11 {remains equal.}) 36... Ne6 $17 {[%emt 0:00:18] White must now prevent ...g5.} 37. Ree2 $2 {[%emt 0:00:48][%mdl 8192]} (37. Re4 $17) 37... Nf4+ $19 {[%emt 0:00:08]} 38. Kf1 {[%emt 0:00:31]} Nxe2 {[%emt 0:00:30]} 39. Rxe2 {[%emt 0:00:01]} Rxe2 {[%emt 0:00:25]} 40. Kxe2 {[%emt 0:00:00][%mdl 4096] Endgame. KR-KN} Rb3 {[%emt 0:00:25]} 41. Kd2 {[%emt 0:00:43]} Rb2+ {[%emt 0:00:47]} 42. Kc1 {[%emt 0:00:13]} Rxf2 {[%emt 0:00:11]} 43. Nd2 {[%emt 0:00:05]} f5 {[%emt 0:05:31]} 44. gxf5 {[%emt 0:00:16]} g5 {[%emt 0:00:00][%cal Of2d2] ...Rxd2! is the strong threat.} 45. Nxc4 {[%emt 0:00:00]} Kf6 {[%emt 0:00:00]} 46. Nd6 {[%emt 0:00:00]} Ra2 {[%emt 0:00:00]} 47. Kb1 {[%emt 0:00:00]} Re2 {[%emt 0:00:00]} 48. Kc1 {[%emt 0:00:00]} g4 {[%emt 0:00:00]} 49. Kd1 {[%emt 0:00:00]} Re7 {[%emt 0:00:00] Weighted Error Value: White=0.78/Black=0.15 (very precise) .  Loses game:     	White=1     	---        Mistake:       	White=5     	Black=5      Inaccurate:     	White=3     	Black=3      OK:         	White=10    	Black=10     Best:        	White=4     	Black=5} 0-1